bitfinex-derivatives/quotes_SOLF0:USTF0_20240912
["timestamp","ask_amount","ask_price","bid_price","bid_amount"]
[1726140216055,3.3371,134.84,134.81,14.7677]
[1726140218251,3.3371,134.84,134.81,3.3377]
[1726140218451,3.3371,134.84,134.81,14.7677]
[1726140222965,3.337,134.85,134.82,3.3376]
[1726140223359,35.127,134.88,134.81,11.43]
[1726140223662,3.3371,134.84,134.81,14.7677]
[1726140224561,3.3369,134.85,134.82,3.3375]
[1726140228368,3.3367,134.86,134.81,11.43]
[1726140229160,3.3367,134.86,134.82,3.3374]
[1726140229469,3.3368,134.85,134.82,3.3374]
[1726140230260,3.3368,134.85,134.83,3.3373]
[1726140230458,3.3367,134.86,134.83,3.3373]
[1726140233371,3.3368,134.85,134.83,3.3373]
[1726140234167,3.3368,134.85,134.81,11.43]
[1726140234168,3.3371,134.84,134.82,3.3375]
[1726140234663,3.3369,134.85,134.82,3.3375]
[1726140236873,1.417,134.88,134.83,11.43]
[1726140237569,3.337,134.85,134.83,11.43]
[1726140238470,1.417,134.88,134.83,11.43]
[1726140239172,3.337,134.85,134.83,11.43]
[1726140239872,3.337,134.85,134.83,14.7673]
[1726140240075,3.337,134.85,134.83,11.43]
[1726140241264,3.3371,134.84,134.83,11.43]
[1726140242464,3.3369,134.85,134.83,11.43]
[1726140242670,3.3369,134.85,134.83,14.7673]
[1726140243178,3.3371,134.84,134.83,11.43]
[1726140243971,3.3369,134.85,134.83,11.43]
[1726140245668,3.3371,134.84,134.83,11.43]
[1726140246478,3.3369,134.85,134.83,11.43]
[1726140248370,3.3369,134.85,134.82,3.3374]
[1726140248371,3.3369,134.85,134.82,14.7674]
[1726140252278,3.3371,134.84,134.81,3.3378]
[1726140252583,3.3371,134.84,134.81,14.7678]
[1726140255787,3.3371,134.84,134.82,3.3375]
[1726140260688,3.3369,134.85,134.82,3.3375]
[1726140262074,12.847,134.88,134.82,3.3375]
[1726140262075,3.3371,134.84,134.82,3.3375]
[1726140262486,3.337,134.85,134.82,3.3375]
[1726140263185,3.337,134.85,134.83,3.3373]
[1726140266386,3.337,134.85,134.82,3.3374]
[1726140266590,3.337,134.85,134.82,11.43]
[1726140267083,3.3367,134.86,134.83,3.3371]
[1726140267287,3.3367,134.86,134.83,6.99807922]
[1726140267592,3.3367,134.86,134.83,15.09097922]
[1726140268784,3.3367,134.86,134.84,3.3371]
[1726140273501,3.3367,134.86,134.83,18.42817922]
[1726140276700,1.417,134.88,134.84,3.3369]
[1726140277292,3.3367,134.86,134.83,18.42817922]
[1726140281995,3.3369,134.85,134.83,15.09097922]
[1726140282802,3.3369,134.85,134.83,18.42827922]
[1726140284417,3.3362,134.88,134.84,17.60251061]
[1726140284709,3.3362,134.88,134.84,11.43]
[1726140285205,3.3362,134.88,134.85,3.67527403]
[1726140285792,3.3362,134.88,134.84,11.43]
[1726140286194,3.3362,134.88,134.85,3.66785747]
[1726140286612,12.7468,134.91,134.82,1.3526]
[1726140286808,12.7468,134.91,134.84,11.43]
[1726140287010,12.7468,134.91,134.84,15.10935313]
[1726140287307,12.7468,134.91,134.84,18.44625313]
[1726140288299,3.3363,134.87,134.84,18.44625313]
[1726140290512,3.3362,134.88,134.85,3.3366]
[1726140293111,3.3362,134.88,134.85,14.7666]
[1726140294208,1.3874,134.92,134.86,11.43]
[1726140294397,1.3703,134.93,134.84,3.67935313]
[1726140294602,1.3703,134.93,134.85,6.1681783]
[1726140294904,1.3703,134.93,134.87,11.43]
[1726140295107,11.43,134.92,134.83,1.292]
[1726140295309,1.3703,134.93,134.86,11.43]
[1726140295705,12.8003,134.93,134.86,15.16136542]
[1726140295900,3.3358,134.9,134.86,18.49786542]
[1726140296409,11.43,134.92,134.85,3.3367]
[1726140296605,11.43,134.92,134.85,14.7667]
[1726140297104,3.336,134.89,134.85,14.7667]
[1726140297507,3.336,134.89,134.86,3.3365]
[1726140298812,3.336,134.89,134.86,14.7665]
[1726140301102,3.336,134.89,134.85,3.3367]
[1726140301299,15.12771581,134.91,134.82,1.3526]
[1726140301498,15.12771581,134.91,134.84,11.43]
[1726140302102,15.12771581,134.91,134.84,14.7669]
[1726140302103,3.3362,134.88,134.84,14.7669]
[1726140302705,11.43,134.9,134.83,7.06680545]
[1726140302921,11.43,134.9,134.83,11.43]
[1726140303420,11.43,134.9,134.83,15.05095817]
[1726140303919,3.3362,134.88,134.84,11.43]
[1726140304115,14.2727,134.92,134.84,11.43]
[1726140304313,14.2727,134.92,134.86,11.43]
[1726140304619,3.336,134.89,134.86,11.43]
[1726140304819,1.3703,134.93,134.88,11.43]
[1726140305316,3.3352,134.92,134.89,3.3357]
[1726140306414,3.3352,134.92,134.88,14.766]
[1726140308414,3.3352,134.92,134.88,11.43]
[1726140308616,3.3352,134.92,134.89,3.3358]
[1726140311911,3.3351,134.93,134.9,3.3355]
[1726140313502,11.43,134.95,134.89,3.3357]
[1726140314320,3.3352,134.92,134.89,3.3357]
[1726140314709,11.43,134.95,134.88,14.766]
[1726140314904,1.4219,134.96,134.86,5.07235705]
[1726140314905,11.43,134.92,134.86,5.07235705]
[1726140315112,11.43,134.92,134.86,1.3129]
[1726140315720,11.43,134.92,134.85,16.59794388]
[1726140315923,11.43,134.92,134.85,12.8092]
[1726140316822,11.43,134.92,134.86,3.3364]
[1726140317728,3.3359,134.89,134.86,3.3364]
[1726140321625,3.3359,134.89,134.87,3.3363]
[1726140324235,3.3356,134.9,134.87,14.7663]
[1726140325631,3.3356,134.9,134.88,3.3361]
[1726140326132,11.43,134.92,134.88,3.3361]
[1726140326934,3.3354,134.91,134.88,3.3361]
[1726140329833,1.4219,134.96,134.89,3.3358]
[1726140329834,3.3352,134.92,134.89,3.3358]
[1726140331228,3.3348,134.94,134.91,3.3352]
[1726140331433,1.4219,134.96,134.91,11.43]
[1726140331932,12.8519,134.96,134.89,3.3358]
[1726140332137,11.43,134.94,134.89,11.43]
[1726140332333,11.43,134.94,134.88,3.3359]
[1726140332334,3.3355,134.91,134.88,3.3359]
[1726140332537,3.3355,134.91,134.88,14.7659]
[1726140335136,3.3356,134.9,134.87,3.3362]
[1726140335442,11.43,134.94,134.88,11.43]
[1726140335830,3.3355,134.91,134.88,14.7661]
[1726140336534,3.3356,134.9,134.87,3.3362]
[1726140336842,3.3356,134.9,134.88,11.43]
[1726140337732,3.3355,134.91,134.88,11.43]
[1726140339339,3.3355,134.91,134.88,14.7661]
[1726140342443,11.43,134.94,134.89,3.3357]
[1726140342646,11.43,134.94,134.89,14.7657]
[1726140343037,3.3352,134.92,134.89,14.7657]
[1726140345339,1.4219,134.96,134.91,3.3353]
[1726140345550,1.4219,134.96,134.9,11.43]
[1726140345740,1.4219,134.96,134.92,11.43]
[1726140345942,3.3347,134.94,134.92,11.43]
[1726140346650,306.38784763,135.02,134.86,1.307]
[1726140346651,228.0,135.06,134.93,11.43]
[1726140346855,228.0,135.06,134.95,11.43]
[1726140346856,11.43,135.02,134.95,11.43]
[1726140347036,12.5837836,135.01,134.95,11.43]
[1726140347237,4.0838,135.05,134.92,1.4008]
[1726140347238,3.334,134.97,134.92,1.4008]
[1726140347444,11.43,134.98,134.92,12.8308]
[1726140347847,3.334,134.97,134.92,12.8308]
[1726140348256,3.334,134.97,134.93,3.3347]
[1726140349562,3.334,134.97,134.94,3.3346]
[1726140350255,14.7637,134.98,134.94,3.3346]
[1726140351449,3.3337,134.98,134.95,3.3342]
[1726140352058,6.0915,134.99,134.95,3.3342]
[1726140353462,3.3337,134.98,134.95,3.3342]
[1726140354653,6.0915,134.99,134.96,3.3341]
[1726140354851,6.0915,134.99,134.94,11.43]
[1726140354852,2.758,134.99,134.94,11.43]
[1726140355357,3.3338,134.98,134.95,3.3342]
[1726140357543,3.3339,134.97,134.95,3.3342]
[1726140357747,3.3339,134.97,134.94,11.43]
[1726140358063,3.3342,134.96,134.93,3.3348]
[1726140358363,14.188,134.99,134.92,12.8308]
[1726140358748,3.3342,134.96,134.92,12.8308]
[1726140359164,3.3342,134.96,134.93,3.3347]
[1726140361062,3.334,134.97,134.94,3.3345]
[1726140362460,3.334,134.97,134.94,14.7645]
[1726140363154,3.3338,134.98,134.95,3.3343]
[1726140363558,2.758,134.99,134.95,3.3343]
[1726140363759,3.3338,134.98,134.95,3.3343]
[1726140365768,3.3338,134.98,134.94,11.43]
[1726140366273,3.3338,134.98,134.95,3.3342]
[1726140366659,3.3338,134.98,134.94,11.43]
[1726140367760,3.3338,134.98,134.95,3.3343]
[1726140368159,11.43,134.98,134.92,2.8243]
[1726140368372,11.43,134.98,134.92,4.7358]
[1726140368674,11.43,134.98,134.92,12.8308]
[1726140369262,3.3345,134.95,134.92,16.1658]
[1726140369869,3.3345,134.95,134.93,3.3348]
[1726140370167,3.3341,134.96,134.92,12.8308]
[1726140370866,3.3345,134.95,134.92,4.7358]
[1726140371066,3.3345,134.95,134.92,16.1658]
[1726140371960,3.3343,134.96,134.93,3.3347]
[1726140372267,11.43,134.98,134.92,12.8308]
[1726140372469,3.3345,134.95,134.92,16.1658]
[1726140372873,11.43,134.98,134.92,16.1658]
[1726140373867,3.3345,134.95,134.93,3.3348]
[1726140374665,3.3345,134.95,134.92,16.1658]
[1726140377577,3.3346,134.94,134.92,16.1658]
[1726140379576,3.3344,134.95,134.92,16.1658]
[1726140383181,12.8061,134.99,134.92,1.4008]
[1726140383388,3.3348,134.94,134.92,12.8308]
[1726140384784,3.3348,134.94,134.92,16.1659]
[1726140385190,3.335,134.93,134.86,1.307]
[1726140385393,3.335,134.93,134.9,3.3354]
[1726140387980,3.335,134.93,134.89,11.43]
[1726140387981,3.3352,134.92,134.89,3.3357]
[1726140392605,3.3352,134.92,134.9,3.3356]
[1726140393607,1.34,134.95,134.91,11.43]
[1726140395417,3.3346,134.94,134.91,14.7653]
[1726140395914,3.3349,134.93,134.91,14.7653]
[1726140396108,3.3349,134.93,134.91,3.3353]
[1726140396302,12.77,134.95,134.9,3.3355]
[1726140397722,3.3351,134.93,134.9,3.3355]
[1726140397907,12.77,134.95,134.9,3.3355]
[1726140398899,3.3352,134.92,134.9,3.3355]
[1726140403704,3.3349,134.93,134.9,3.3355]
[1726140403912,12.77,134.95,134.9,3.3355]
[1726140404814,3.3352,134.92,134.89,3.3357]
[1726140406812,3.3354,134.91,134.88,14.7659]
[1726140409114,3.3354,134.91,134.88,3.3359]
[1726140410010,3.3356,134.9,134.88,3.3359]
[1726140410714,3.3355,134.91,134.88,3.3359]
[1726140411121,12.8329,134.94,134.87,19.71700995]
[1726140411521,16.50755288,134.94,134.87,19.71700995]
[1726140411909,3.3357,134.9,134.87,19.71700995]
[1726140414223,3.3359,134.89,134.87,6.96710995]
[1726140419629,3.3357,134.9,134.87,6.96710995]
[1726140420030,11.43,134.92,134.87,6.96710995]
[1726140421329,3.3358,134.9,134.87,6.96710995]
[1726140424341,3.3358,134.89,134.87,6.96710995]
[1726140425241,14.2163,134.94,134.87,15.06080995]
[1726140426240,3.3355,134.91,134.87,15.06080995]
[1726140426829,3.3355,134.91,134.88,3.3359]
[1726140428031,14.2163,134.94,134.88,3.3359]
[1726140428640,3.3355,134.91,134.88,3.3359]
[1726140429040,3.3356,134.91,134.89,3.3358]
[1726140430442,3.3356,134.91,134.88,3.3359]
[1726140430842,3.3352,134.92,134.87,15.14894582]
[1726140431043,3.3352,134.92,134.89,3.3357]
[1726140432742,3.3354,134.91,134.89,3.3357]
[1726140443261,3.3354,134.91,134.88,3.336]
[1726140450071,1.4029,134.94,134.87,15.14894582]
[1726140450072,3.3352,134.92,134.89,11.43]
[1726140450472,1.4029,134.94,134.89,14.7657]
[1726140450957,3.3354,134.91,134.88,3.78067768]
[1726140451155,1.4029,134.94,134.88,14.766]
[1726140451358,1.4029,134.94,134.88,18.56558478]
[1726140451572,3.3356,134.91,134.88,18.56558478]
[1726140451767,3.3356,134.91,134.88,14.766]
[1726140454272,3.3356,134.9,134.88,14.766]
[1726140457262,11.43,134.93,134.87,3.73841476]
[1726140457458,11.43,134.93,134.83,2.8297]
[1726140457658,11.43,134.93,134.85,11.43]
[1726140457864,11.43,134.93,134.86,9.68554694]
[1726140457865,3.3361,134.89,134.86,9.68554694]
[1726140458058,3.3361,134.89,134.87,6.34904694]
[1726140458270,11.43,134.93,134.86,3.3365]
[1726140458470,11.43,134.93,134.87,6.34928003]
[1726140458667,11.43,134.93,134.86,3.3365]
[1726140458869,3.336,134.89,134.87,6.34917277]
[1726140459069,3.336,134.89,134.87,14.7663]
[1726140459481,3.3356,134.9,134.87,14.7663]
[1726140459974,11.43,134.93,134.87,14.7663]
[1726140460175,2.7597,134.94,134.87,14.7663]
[1726140460376,14.1897,134.94,134.87,14.7663]
[1726140460575,3.3358,134.9,134.87,14.7663]
[1726140462171,3.3359,134.89,134.87,14.7663]
[1726140462968,3.3359,134.89,134.87,11.43]
[1726140465380,3.3359,134.89,134.87,14.7663]
[1726140465570,3.3359,134.89,134.88,6.34982239]
[1726140466282,3.3359,134.89,134.87,14.7663]
[1726140466466,3.2759,134.89,134.87,14.7663]
[1726140468281,3.2759,134.89,134.88,6.34996982]
[1726140469187,3.2759,134.89,134.87,14.7663]
[1726140469385,3.2759,134.89,134.87,14.7063]
[1726140469684,3.2759,134.89,134.87,3.3363]
[1726140470490,3.2759,134.89,134.88,6.34947391]
[1726140472189,3.2759,134.89,134.86,3.3364]
[1726140472379,3.2759,134.89,134.87,6.34943965]
[1726140472579,3.2759,134.89,134.86,3.3364]
[1726140472887,3.2759,134.89,134.87,6.34943965]
[1726140473076,3.2759,134.89,134.86,3.3364]
[1726140473386,3.2759,134.89,134.87,6.34891248]
[1726140473580,3.2759,134.89,134.86,3.3364]
[1726140473977,3.2759,134.89,134.87,6.34875252]
[1726140474191,3.2759,134.89,134.86,3.3364]
[1726140474884,3.2759,134.89,134.87,6.34853486]
[1726140475078,3.2759,134.89,134.86,3.3364]
[1726140475282,3.2759,134.89,134.87,6.34813855]
[1726140475482,3.2759,134.89,134.86,3.3364]
[1726140475787,3.2759,134.89,134.87,6.3481596]
[1726140475991,3.2759,134.89,134.86,3.3364]
[1726140476182,3.2759,134.89,134.87,6.34818691]
[1726140476379,3.2759,134.89,134.86,3.3364]
[1726140476584,3.2759,134.89,134.87,6.34818691]
[1726140476779,3.2759,134.89,134.86,3.3364]
[1726140477084,3.2759,134.89,134.87,6.34808195]
[1726140477286,3.2759,134.89,134.86,3.3364]
[1726140477781,3.2759,134.89,134.87,6.34799779]
[1726140477983,3.2759,134.89,134.86,3.3364]
[1726140478188,3.2759,134.89,134.87,6.34808267]
[1726140478387,3.2759,134.89,134.86,3.3364]
[1726140478591,3.2759,134.89,134.87,6.34808267]
[1726140478790,3.2759,134.89,134.86,3.3364]
[1726140479084,3.2759,134.89,134.87,6.34808267]
[1726140479385,3.2759,134.89,134.86,3.3364]
[1726140479585,3.2759,134.89,134.87,6.34771855]
[1726140479887,3.2759,134.89,134.86,3.3364]
[1726140480085,3.2759,134.89,134.87,6.3477079]
[1726140480292,3.2759,134.89,134.86,3.3364]
[1726140480592,3.2759,134.89,134.87,6.3477079]
[1726140480777,3.2759,134.89,134.86,3.3364]
[1726140481182,3.2759,134.89,134.87,6.34779207]
[1726140481381,3.2759,134.89,134.86,3.3364]
[1726140481595,3.2759,134.89,134.87,6.34779207]
[1726140481785,3.2759,134.89,134.86,3.3364]
[1726140481985,3.2759,134.89,134.87,6.34810214]
[1726140482188,3.2759,134.89,134.86,3.3364]
[1726140482393,3.2759,134.89,134.87,6.34810214]
[1726140482584,3.2759,134.89,134.86,3.3364]
[1726140482795,3.2759,134.89,134.87,9.68566196]
[1726140482992,3.2759,134.89,134.87,3.3363]
[1726140483499,3.3357,134.9,134.87,3.3363]
[1726140484194,3.3359,134.89,134.87,3.3363]
[1726140493811,3.3357,134.9,134.87,3.3363]
[1726140495209,3.3358,134.89,134.87,3.3363]
[1726140497711,2.7597,134.94,134.88,3.3361]
[1726140498014,14.1897,134.94,134.88,3.3361]
[1726140498515,3.3355,134.91,134.88,3.3361]
[1726140499514,3.3355,134.91,134.89,3.3358]
[1726140500804,3.3355,134.91,134.88,3.3359]
[1726140502009,3.3355,134.91,134.89,3.3358]
[1726140504706,14.1897,134.94,134.9,3.3356]
[1726140505811,3.3352,134.92,134.9,3.3356]
[1726140514228,2.7597,134.94,134.89,3.3357]
[1726140514821,11.43,134.92,134.83,2.8272]
[1726140515025,11.43,134.92,134.85,11.43]
[1726140515232,3.3359,134.89,134.87,3.3362]
[1726140515721,3.3359,134.89,134.88,6.34993319]
[1726140515916,11.43,134.92,134.83,6.55708804]
[1726140515917,3.3361,134.88,134.86,3.3365]
[1726140516226,11.43,134.91,134.87,6.35096257]
[1726140516621,3.336,134.89,134.86,3.3365]
[1726140516825,3.336,134.89,134.87,6.35111098]
[1726140517030,3.336,134.89,134.86,3.3365]
[1726140517235,3.336,134.89,134.87,6.35111474]
[1726140517423,3.336,134.89,134.86,3.3365]
[1726140517730,3.336,134.89,134.87,6.35111617]
[1726140517923,3.336,134.89,134.86,3.3365]
[1726140518124,3.336,134.89,134.87,6.351085]
[1726140518321,3.336,134.89,134.86,3.3365]
[1726140518726,3.336,134.89,134.87,6.35090965]
[1726140518918,3.336,134.89,134.86,3.3365]
[1726140519120,3.336,134.89,134.87,6.3510002]
[1726140519315,3.336,134.89,134.86,3.3365]
[1726140519622,3.336,134.89,134.87,6.3509062]
[1726140519825,3.336,134.89,134.86,3.3365]
[1726140520024,3.336,134.89,134.87,6.3506931]
[1726140520218,3.3357,134.9,134.87,3.3363]
[1726140523030,3.3357,134.9,134.88,6.34980433]
[1726140523229,3.3357,134.9,134.87,3.3363]
[1726140523542,3.3357,134.9,134.88,6.3497989]
[1726140523734,3.3357,134.9,134.87,3.3363]
[1726140524333,3.3357,134.9,134.88,6.34979197]
[1726140524528,3.3357,134.9,134.87,3.3363]
[1726140524733,3.3358,134.89,134.88,6.34959448]
[1726140525220,3.3358,134.89,134.86,14.7665]
[1726140525532,3.3358,134.89,134.87,6.34989832]
[1726140525729,3.3358,134.89,134.86,3.3365]
[1726140526035,3.3358,134.89,134.87,16.50701018]
[1726140526219,3.3358,134.89,134.88,6.34983031]
[1726140528633,11.43,134.89,134.83,1.433]
[1726140528826,11.43,134.88,134.83,1.433]
[1726140529026,11.43,134.88,134.82,7.10576103]
[1726140529227,11.43,134.88,134.84,6.35906702]
[1726140529431,11.43,134.88,134.82,7.10576103]
[1726140529640,11.43,134.88,134.83,6.2241915]
[1726140529838,11.43,134.88,134.82,7.10576103]
[1726140530040,11.43,134.88,134.83,6.22480304]
[1726140530238,3.3371,134.84,134.81,3.3377]
[1726140530543,11.43,134.86,134.82,6.22488481]
[1726140530725,3.3373,134.84,134.8,14.7679]
[1726140531131,5.03570683,134.89,134.76,1.3657]
[1726140531132,11.43,134.85,134.76,1.3657]
[1726140531325,3.3378,134.82,134.78,3.3384]
[1726140531642,3.3378,134.82,134.79,6.22678224]
[1726140531845,3.3378,134.82,134.8,6.22678224]
[1726140532154,3.3378,134.82,134.78,3.3384]
[1726140532338,11.43,134.84,134.77,6.99468575]
[1726140532339,3.338,134.81,134.77,6.99468575]
[1726140532536,3.338,134.81,134.78,6.22877119]
[1726140532743,3.338,134.81,134.77,11.43]
[1726140533343,3.338,134.81,134.77,14.7687]
[1726140533544,11.43,134.82,134.75,1.3616]
[1726140533849,11.43,134.82,134.76,6.23111242]
[1726140534146,11.43,134.82,134.77,6.23111242]
[1726140534346,11.43,134.81,134.75,16.1308]
[1726140534748,11.43,134.81,134.75,4.7008]
[1726140535051,11.43,134.81,134.75,16.1308]
[1726140535441,3.3384,134.79,134.75,16.1308]
[1726140538338,3.3384,134.79,134.76,3.3391]
[1726140538539,3.3382,134.8,134.75,12.7916]
[1726140540344,11.43,134.82,134.75,12.7916]
[1726140540742,3.3381,134.8,134.76,3.339]
[1726140541342,3.3384,134.79,134.76,3.339]
[1726140542146,3.3381,134.8,134.77,3.3388]
[1726140542340,12.7771,134.83,134.77,11.43]
[1726140542944,3.3379,134.81,134.78,3.3384]
[1726140543146,1.3471,134.83,134.78,11.43]
[1726140543844,3.3377,134.82,134.79,3.3383]
[1726140544552,1.3471,134.83,134.8,3.338]
[1726140544553,3.3374,134.83,134.8,3.338]
[1726140545651,3.3376,134.82,134.79,3.3382]
[1726140545855,3.3376,134.82,134.78,11.43]
[1726140546152,1.315,134.86,134.81,3.3378]
[1726140546656,3.3372,134.84,134.81,3.3378]
[1726140551747,3.337,134.85,134.82,3.3374]
[1726140554361,3.337,134.85,134.81,11.43]
[1726140554362,3.337,134.85,134.83,3.3372]
[1726140554551,3.3367,134.86,134.83,3.3372]
[1726140556456,3.3364,134.87,134.84,3.3369]
[1726140558469,12.8007,134.88,134.84,3.3369]
[1726140558965,3.3366,134.86,134.83,3.3372]
[1726140561560,3.3369,134.85,134.83,3.3372]
[1726140564866,3.3369,134.85,134.82,3.3375]
[1726140568975,3.3369,134.85,134.83,3.3373]
[1726140569170,3.3367,134.86,134.83,3.3373]
[1726140572177,3.3364,134.87,134.84,3.337]
[1726140574475,3.3364,134.87,134.85,3.3368]
[1726140574680,3.3364,134.87,134.83,11.43]
[1726140575277,3.3364,134.87,134.84,3.3369]
[1726140580076,3.3366,134.86,134.84,3.3369]
[1726140582282,3.3369,134.85,134.83,3.3372]
[1726140595514,3.337,134.85,134.82,14.7674]
[1726140595710,3.337,134.85,134.82,11.43]
[1726140596106,3.337,134.85,134.82,14.7674]
[1726140596609,3.3367,134.86,134.83,3.3372]
[1726140598715,3.3368,134.85,134.83,3.3372]
[1726140599112,3.3367,134.86,134.83,3.3372]
[1726140602216,3.3368,134.85,134.83,3.3372]
[1726140603513,3.3368,134.85,134.82,3.3375]
[1726140606110,3.3368,134.86,134.83,3.3372]
[1726140610429,3.3368,134.85,134.83,3.3372]
[1726140610625,1.3707,134.88,134.83,11.43]
[1726140611232,1.3707,134.88,134.85,3.3367]
[1726140612823,3.3363,134.87,134.85,3.3367]
[1726140614624,3.3362,134.88,134.84,11.43]
[1726140614821,1.4046,134.9,134.86,11.43]
[1726140615024,103.2633911,134.92,134.86,11.43]
[1726140615025,107.03165157,134.92,134.86,11.43]
[1726140615833,118.46165157,134.92,134.87,3.3363]
[1726140616619,3.3358,134.9,134.87,3.3363]
[1726140617733,3.3359,134.89,134.87,3.3363]
[1726140621646,3.3357,134.9,134.87,3.3363]
[1726140622240,103.2633911,134.92,134.89,11.43]
[1726140622840,103.2633911,134.92,134.89,14.7656]
[1726140623929,3.3354,134.91,134.89,14.7656]
[1726140626447,3.3362,134.88,134.85,11.43]
[1726140626647,114.6933911,134.92,134.85,11.43]
[1726140627141,114.6933911,134.92,134.85,14.7667]
[1726140627535,3.3363,134.88,134.85,14.7667]
[1726140627946,3.3364,134.87,134.85,11.43]
[1726140630444,3.3364,134.87,134.84,4.7352]
[1726140630953,3.3366,134.86,134.84,3.3369]
[1726140631450,11.43,134.87,134.83,3.3372]
[1726140631754,11.43,134.87,134.78,9.96364808]
[1726140631934,3.3372,134.84,134.81,3.3377]
[1726140632133,3.3372,134.84,134.81,7.02317908]
[1726140633660,11.43,134.85,134.77,2.7856]
[1726140633965,11.43,134.82,134.69,1.3363]
[1726140634142,11.43,134.82,134.75,17.66302674]
[1726140634347,11.43,134.82,134.76,6.23302674]
[1726140634558,11.43,134.82,134.75,18.46801405]
[1726140634559,3.3381,134.8,134.75,15.12881405]
[1726140634856,3.3381,134.8,134.76,9.57378431]
[1726140635057,3.3381,134.8,134.76,3.339]
[1726140636653,11.43,134.82,134.76,3.339]
[1726140637258,3.3383,134.79,134.75,18.46801405]
[1726140637453,3.3383,134.79,134.75,14.7692]
[1726140637762,3.3386,134.78,134.75,14.7692]
[1726140641460,3.3384,134.79,134.76,14.769]
[1726140642159,3.3381,134.8,134.77,3.3388]
[1726140642353,3.3381,134.8,134.78,11.43]
[1726140642556,5.15134291,134.85,134.78,11.43]
[1726140642766,16.58134291,134.85,134.78,11.43]
[1726140642952,16.58134291,134.85,134.78,14.7685]
[1726140643352,16.58134291,134.85,134.78,11.43]
[1726140643675,3.3378,134.82,134.78,14.7684]
[1726140644055,16.58134291,134.85,134.78,14.7684]
[1726140644262,11.43,134.84,134.78,14.7684]
[1726140644455,11.43,134.84,134.79,3.3383]
[1726140644649,11.43,134.84,134.79,14.7683]
[1726140644857,3.3377,134.82,134.79,14.7683]
[1726140645056,11.43,134.84,134.8,3.338]
[1726140645863,3.3375,134.83,134.8,3.338]
[1726140646565,1.4126,134.86,134.82,11.43]
[1726140647162,3.3368,134.85,134.82,14.7674]
[1726140648472,11.43,134.89,134.83,3.3371]
[1726140649168,3.3367,134.86,134.83,3.3371]
[1726140651659,12.8379,134.9,134.84,3.337]
[1726140651970,12.8379,134.9,134.85,11.43]
[1726140652563,3.336,134.89,134.86,3.3366]
[1726140657885,12.8426,134.92,134.86,11.43]
[1726140658564,3.3357,134.9,134.87,3.3361]
[1726140658970,12.8426,134.92,134.86,11.43]
[1726140659167,12.8426,134.92,134.85,11.43]
[1726140659883,3.336,134.89,134.86,3.3366]
[1726140660467,12.8426,134.92,134.86,3.3366]
[1726140660468,3.3361,134.88,134.86,3.3366]
[1726140660873,11.43,134.91,134.85,3.3367]
[1726140660874,3.3364,134.87,134.85,3.3367]
[1726140661175,11.43,134.89,134.82,11.43]
[1726140661480,3.3368,134.86,134.83,3.3372]
[1726140662182,3.3364,134.87,134.84,3.337]
[1726140663174,3.3364,134.87,134.85,3.3368]
[1726140664478,3.3362,134.88,134.85,3.3368]
[1726140664781,3.3362,134.88,134.84,11.43]
[1726140665172,3.3362,134.88,134.85,3.3367]